Cogmind - Beta 14 @@@ ROGUE MODE // 2025.03.20 @ 18:49:21 Player: kat Result: Self-destructed Performance ------------- Evolutions (2) 1000 Regions Visited (4) 800 Robots Destroyed (35) 175 Value Destroyed (781) 781 Prototype IDs (2) 40 Alien Tech Used (0) 0 Bonus (44) 44 TOTAL SCORE: 2840 Bonus ------- High Alert Combat Kills 44 Cogmind --------- Core Integrity 507/550 Matter 75/300 Energy 125/125 System Corruption 0% Temperature Cool (0) Movement Flying (114) Ox1 Location -8/Materials Parts ------- > --- POWER (1) -------- Light Ion Engine > --- PROPULSION (4) --- Flight Unit Flight Unit Flight Unit > --- UTILITY (3) ------ Cooling System Small Storage Unit Signal Interpreter > --- WEAPON (3) ------- Rocket Launcher > --- INVENTORY (8) ---- Visual Processing Unit Shock Rifle Shock Rifle Shock Rifle Shock Rifle Spread Laser Scythe Scythe Peak State ------------ > --- POWER ------------ Light Ion Engine > --- PROPULSION ------- Flight Unit Flight Unit Flight Unit Flight Unit > --- UTILITY ---------- Cooling System Small Storage Unit Signal Interpreter > --- WEAPON ----------- Shock Rifle Shock Rifle > --- INVENTORY -------- Visual Processing Unit Shock Rifle Shock Rifle Spread Laser Rocket Launcher Scythe Scythe [Rating: 16] Favorites ----------- Power Light Ion Engine Engine Light Ion Engine Propulsion Flight Unit Leg Aluminum Leg Hover Unit Hover Unit Flight Unit Flight Unit Utility Small Storage Unit Device Cooling System Storage Small Storage Unit Processor Signal Interpreter Weapon Small Laser Energy Gun Small Laser Launcher Rocket Launcher Build | -11 -10 -10 -9 -8 ------- Run | Yrd Mat Min Mat Mat Slots Evolved 4 | . . . 2 2 Power . | . . . . . Propulsion 2 | . . . 2 . Utility 1 | . . . . 1 Weapon 1 | . . . . 1 Parts Attached 28 | 6 8 6 4 4 Power 2 | 1 . 1 . . Engine 2 | 1 . 1 . . Core . | . . . . . Reactor . | . . . . . Propulsion 12 | 2 4 2 3 1 Treads . | . . . . . Leg 4 | 2 2 . . . Wheel . | . . . . . Hover 2 | . 2 . . . Flight 6 | . . 2 3 1 Utility 3 | 1 1 . . 1 Device 1 | . . . . 1 Storage 1 | 1 . . . . Processor 1 | . 1 . . . Hackware . | . . . . . Protection . | . . . . . Artifact . | . . . . . Weapon 11 | 2 3 3 1 2 Energy Gun 7 | 2 2 1 1 1 Energy Cannon . | . . . . . Ballistic Gun . | . . . . . Ballistic Cannon . | . . . . . Launcher 4 | . 1 2 . 1 Special Weapon . | . . . . . Impact Weapon . | . . . . . Slashing Weapon . | . . . . . Piercing Weapon . | . . . . . Special Melee Weapon . | . . . . . Unidentified Prototypes . | . . . . . Parts Lost 2 | . 1 . . 1 Power . | . . . . . Propulsion 2 | . 1 . . 1 Utility . | . . . . . Weapon . | . . . . . Highest Loss Streak 1 | . 1 . . 1 To Critical Strikes . | . . . . . Average Slot Usage (%) 96 | . 95 99 100 87 Engine 13 | . 14 14 11 9 Leg 10 | . 21 8 . . Hover 1 | . 5 . . . Flight 18 | . . 19 44 35 Device 1 | . . . . 9 Storage 13 | . 14 14 11 9 Processor 12 | . 10 14 11 9 Energy Gun 14 | . 14 13 11 14 Launcher 11 | . 13 13 11 1 Peak Build Rating 16 | 6 7 8 14 16 Average Rating 8 | 5 6 7 12 15 On Entrance 7 | . 6 7 8 14 Naked Turns . | . . . . . Heaviest Build 16 | 11 13 13 15 16 Greatest Support 20 | 20 20 20 16 16 Greatest Overweight (x) 3 | 3 1 1 . 1 Average Overweight (x) . | 2 . . . . Largest Inventory Capacity 8 | 8 8 8 8 8 Average Capacity 7 | 7 8 8 8 8 Most Carried 8 | 1 8 8 8 8 Average Carried 7 | . 6 7 6 7 Final Capacity 8 | 8 8 8 8 8 Final Carried 8 | 1 8 8 8 8 Class Distribution -------------------- 79% | Mutant 18% | Scavenger-Sprinter Dominant Class ---------------- Mutant | -10/Materials Mutant | -10/Mines Scavenger-Sprinter | -9/Materials Scavenger-Sprinter | -8/Materials Resources | -11 -10 -10 -9 -8 ----------- Run | Yrd Mat Min Mat Mat Matter Collected 564 | 202 116 117 111 18 Remotely . | . . . . . Salvage Created 597 | . 220 53 56 268 Parts 54 | . 27 10 2 15 Haulers Intercepted 1 | . 1 . . . Recyclers Shooed 3 | . 2 1 . . Parts Field Recycled . | . . . . . Retrieved Matter . | . . . . . Parts Self-Destructed . | . . . . . Prevented . | . . . . . Kills | -11 -10 -10 -9 -8 ------- Run | Yrd Mat Min Mat Mat Combat Hostiles Destroyed 27 | . 10 6 2 9 Guns 7 | . 3 3 1 . AOE 20 | . 7 3 1 9 Classes Destroyed 9 | . 5 . 1 3 Worker 2 | . . . . 2 Hauler 1 | . 1 . . . Recycler 1 | . 1 . . . Operator 1 | . . . . 1 Watcher 3 | . 3 . . . Swarmer 15 | . 9 6 . . Grunt 9 | . 1 . 1 7 Duelist 1 | . . . 1 . Sentry 2 | . . . . 2 Best Kill Streak 12 | . 6 3 2 12 Combat Bots Only 6 | . 6 3 2 6 Max Kills in Single Turn 3 | . 2 3 1 2 Gunslinging . | . . . . . Exploded 3 | . 2 3 1 2 Melee . | . . . . . Uniques/NPCs Destroyed . | . . . . . Combat | -11 -10 -10 -9 -8 -------- Run | Yrd Mat Min Mat Mat Hostile Shots Fired 51 | . 19 13 2 17 Missed 18 | . 4 4 . 10 Damage Taken 400 | . 157 77 23 143 Core 111 | . 31 25 12 43 Absorbed by Shields . | . . . . . Core Remaining (%) 91 | 100 . 77 97 . Volleys Fired 69 | . 38 8 5 18 Largest 2 | . 2 1 2 1 Hottest 90 | . 90 40 73 33 Shots Fired 72 | . 40 8 6 18 Gun 43 | . 33 6 4 . Cannon . | . . . . . Launcher 29 | . 7 2 2 18 Special . | . . . . . Kinetic . | . . . . . Thermal 43 | . 33 6 4 . Explosive 29 | . 7 2 2 18 Electromagnetic . | . . . . . Robot Hit Streak 7 | . 7 3 1 6 Robot Miss Streak 4 | . 4 2 3 1 Penetration Max . | . . . . . Secondary Targets . | . . . . . Shots Hit Robots 41 | . 24 3 2 12 Core Hits 60 | . 21 6 3 30 Critical Kills . | . . . . . Critical Parts Destroyed . | . . . . . Critical Strikes 2 | . 2 . . . Burn 2 | . 2 . . . Melee Attacks . | . . . . . Impact . | . . . . . Slashing . | . . . . . Piercing . | . . . . . Sneak Attacks . | . . . . . Combat Hostiles . | . . . . . Follow-up Attacks . | . . . . . Damage Inflicted 2031 | . 686 178 183 984 Guns 279 | . 235 32 12 . Cannons . | . . . . . Explosions 1752 | . 451 146 171 984 Melee . | . . . . . Ramming . | . . . . . Kinetic . | . . . . . Thermal 279 | . 235 32 12 . Explosive 1752 | . 451 146 171 984 Electromagnetic . | . . . . . Impact . | . . . . . Slashing . | . . . . . Piercing . | . . . . . Highest Corruption 1 | . . 1 . . Average Corruption 1 | . . 1 . . Corruption Purged . | . . . . . Corruption Blocked . | . . . . . Effects 3 | . . 3 . . Message Errors 1 | . . 1 . . Matter Fused 1 | . . 1 . . Energy Discharges 1 | . . 1 . . Overload Shots . | . . . . . Overflow Damage 32 | . 21 . . 11 Projectiles . | . . . . . Explosions 32 | . 21 . . 11 Melee . | . . . . . Knockbacks . | . . . . . Impact . | . . . . . Kinetic . | . . . . . Secondary . | . . . . . Self-Inflicted Damage 69 | . 42 . . 27 Shots 3 | . 2 . . 1 Rammed . | . . . . . Targets Rammed . | . . . . . Kicked . | . . . . . Crushed . | . . . . . Highest Temperature 90 | . 90 4 18 . Average Temperature 21 | . 23 3 10 . Received Heat Transfer 72 | . 6 . 12 54 Siege Activations . | . . . . . Robots Corrupted . | . . . . . Combat Hostiles . | . . . . . Parts Fried . | . . . . . Impact Corruptions . | . . . . . Robots Melted . | . . . . . Combat Hostiles . | . . . . . Parts Melted . | . . . . . Heat Transferred 868 | . 768 75 25 . Parts Sabotaged . | . . . . . Parts Stolen . | . . . . . Parts Stripped . | . . . . . Power Chain Reactions . | . . . . . Alert | -11 -10 -10 -9 -8 ------- Run | Yrd Mat Min Mat Mat Peak Influence 464 | . 394 236 112 464 Initial 82 | . . 82 . 46 Average 94 | . 171 68 63 90 Maximum Alert Level 2 | . 1 1 . 2 Low Security (%) 85 | 100 64 92 100 88 Level 1 13 | . 35 7 . 6 Level 2 . | . . . . 5 Level 3 . | . . . . . Level 4 . | . . . . . Level 5 . | . . . . . High Security . | . . . . . Max Security . | . . . . . Squads Dispatched 3 | . 1 . . 2 Investigation 2 | . . . . 2 Extermination . | . . . . . Reinforcement 1 | . 1 . . . Assault . | . . . . . Garrison . | . . . . . Intercept . | . . . . . Searches Triggered . | . . . . . Construction Impeded . | . . . . . Haulers Reinforced . | . . . . . Active Scanning Responses . | . . . . . Cargo Convoy Interrupts . | . . . . . Stealth | -11 -10 -10 -9 -8 --------- Run | Yrd Mat Min Mat Mat Distress Signals 2 | . . . 1 1 Communications Jammed . | . . . . . Distress Signals . | . . . . . Times Spotted 39 | . 14 6 5 14 Peak Tracking Total 10 | . 5 3 5 10 Tactical Retreats 1 | . . . . 1 Traps | -11 -10 -10 -9 -8 ------- Run | Yrd Mat Min Mat Mat Traps Triggered 2 | . . 1 . 1 Indirectly . | . . . . . Trap Hack Attempts . | . . . . . Triggered . | . . . . . Disarmed . | . . . . . Reprogrammed . | . . . . . Reused . | . . . . . Traps Extracted . | . . . . . Installed . | . . . . . Triggered . | . . . . . Machines | -11 -10 -10 -9 -8 ---------- Run | Yrd Mat Min Mat Mat Machines Disabled 2 | . 1 . . 1 Max in Single Turn 1 | . 1 . . 1 Machines Repaired . | . . . . . Machines Dismantled . | . . . . . Machines Sabotaged . | . . . . . Overloaded Fab Kills . | . . . . . Hacking | -11 -10 -10 -9 -8 --------- Run | Yrd Mat Min Mat Mat Machines Accessed 11 | . 6 1 2 2 Terminals 6 | . 4 . 1 1 Fabricators . | . . . . . Repair Stations 1 | . . . . 1 Recycling Units 2 | . 2 . . . Scanalyzers 1 | . . . 1 . Garrison Access . | . . . . . Total Hacks 25 | . 13 1 5 6 Successful 15 | . 8 1 4 2 Failed 10 | . 5 . 1 4 Catastrophic 2 | . 2 . . . Database Lockouts . | . . . . . Manual 4 | . 2 . . 2 Terminals 13 | . 6 . 3 4 Fabricators . | . . . . . Repair Stations 2 | . . . . 2 Recycling Units 7 | . 7 . . . Scanalyzers 2 | . . . 2 . Garrison Access . | . . . . . Terminal Hacks 8 | . 4 1 2 1 Prototype ID Bank 1 | . . . 1 . Open Door 1 | . . 1 . . Emergency Access Points 1 | . . . . 1 Locate Traps 1 | . 1 . . . Dispatch Records 1 | . 1 . . . Security Status 1 | . . . 1 . Transport Status 1 | . 1 . . . Zone Layout 1 | . 1 . . . Fabricator Hacks . | . . . . . Repair Station Hacks . | . . . . . Recycling Unit Hacks 2 | . 2 . . . Report Inventory 2 | . 2 . . . Scanalyzer 2 | . . . 2 . Insert Component 1 | . . . 1 . Analyze 1 | . . . 1 . Garrison Access Hacks . | . . . . . Unauthorized Hacks 3 | . 2 . . 1 Terminals 1 | . . . . 1 Track 1 | . . . . 1 Fabricators . | . . . . . Repair Stations . | . . . . . Recycling Units 2 | . 2 . . . Reject 2 | . 2 . . . Scanalyzers . | . . . . . Garrison Access . | . . . . . Data Cores Recovered . | . . . . . Used . | . . . . . Hacking Detections 10 | . 6 . 2 2 Full Trace Events 2 | . . . . 2 Feedback Events . | . . . . . Feedback Blocked . | . . . . . Robot Schematics Acquired . | . . . . . Robots Built . | . . . . . Authchips . | . . . . . Time . | . . . . . Total Robot Build Rating . | . . . . . Part Schematics Acquired 1 | . . . 1 . Parts Built . | . . . . . Authchips . | . . . . . Time . | . . . . . Total Part Build Rating . | . . . . . Parts Repaired . | . . . . . Time . | . . . . . Parts Recycled . | . . . . . Recycled Matter . | . . . . . Retrieved Matter . | . . . . . Retrieved Components . | . . . . . Parts Scanalyzed 1 | . . . 1 . Part Schematics Acquired 1 | . . . 1 . Parts Damaged . | . . . . . Bothacking | -11 -10 -10 -9 -8 ------------ Run | Yrd Mat Min Mat Mat Used RIF Installer . | . . . . . Robots Hacked . | . . . . . Non-combat . | . . . . . Combat . | . . . . . Robot Hacks Applied . | . . . . . Relay Couplers Released . | . . . . . Fabnet Peak Effective % . | . . . . . Robots Rewired . | . . . . . Allies Hacked . | . . . . . Hacks Repelled . | . . . . . Allies | -11 -10 -10 -9 -8 -------- Run | Yrd Mat Min Mat Mat Total Allies 1 | . . 1 . . Largest Group 1 | . . 1 . . Highest-Rated Group 31 | . . 31 . . Highest-Rated Ally 31 | . . 31 . . Total Orders . | . . . . . Ally Attacks . | . . . . . Total Damage . | . . . . . Kills . | . . . . . Allies Corrupted . | . . . . . Allies Melted . | . . . . . Intel | -11 -10 -10 -9 -8 ------- Run | Yrd Mat Min Mat Mat Robot Analysis Total . | . . . . . Derelict Logs Recovered 3 | . . 3 . . Drone Launches . | . . . . . Drone Recoveries . | . . . . . Exploration | -11 -10 -10 -9 -8 ------------- Run | Yrd Mat Min Mat Mat Turns Passed 2074 | 60 506 1093 98 317 Spaces Moved 1436 | 32 384 714 193 113 Core 31 | 31 . . . . Treads . | . . . . . Legs 516 | 1 265 250 . . Wheels . | . . . . . Hover 119 | . 119 . . . Flight 770 | . . 464 193 113 Fastest Speed 31 | 50 56 37 31 31 Average Speed 94 | 160 100 114 31 33 Slowest Speed 200 | 200 120 120 31 114 Overloaded Moves . | . . . . . Propulsion Burnouts . | . . . . . Robots Hopped . | . . . . . Cave-ins Triggered . | . . . . . Exploration Rate (%) 40 | 4 67 97 21 14 Regions Visited 4 Branch Regions 1 Pre-discovered Areas . | . . . . . Known Exits Taken 3 | . 1 1 1 . Unknown Exits Taken 1 | 1 . . . . Scrap Searched 1 | . . 1 . . Spaces Dug 12 | . . . . 12 Terrain Destroyed 202 | . 46 17 19 120 Melee . | . . . . . Projectile . | . . . . . AOE 202 | . 46 17 19 120 Terrain Rammed . | . . . . . Walls Destroyed . | . . . . . Machines Disabled . | . . . . . Actions | -11 -10 -10 -9 -8 --------- Run | Yrd Mat Min Mat Mat Total 2083 | 38 464 982 226 373 Wait 505 | . 17 241 11 236 Move 1432 | 31 383 713 192 113 Hop . | . . . . . Pick Up 26 | 1 12 5 8 . Fast Attach 9 | 6 1 1 . 1 Attach 12 | . 3 4 3 2 Detach 5 | . 1 2 . 2 Swap 7 | . 4 1 1 1 Drop 18 | . 5 7 6 . Fire 69 | . 38 8 5 18 Melee . | . . . . . Ram . | . . . . . Kick . | . . . . . Crush . | . . . . . Escape Stasis . | . . . . . Rewire . | . . . . . Trap . | . . . . . Miscellaneous . | . . . . . Route ------- -11/Scrapyard -10/Materials (discovered 3 exits: *Mat x2 / *Min) -10/Mines (discovered 3 exits: *Mat x2 / *Sub) -9/Materials (discovered 2 exits: *Mat / Sto) -8/Materials History --------- Turn | Location | Event 3 | -11/Scrapyard | Discovered new exit (range 16) 61 | -11/Scrapyard | Entered Materials 260 | -10/Materials | Discovered new exit (range 7) 263 | -10/Materials | Identified exit to Materials 305 | -10/Materials | Build established: Mutant 355 | -10/Materials | Discovered exit to Materials (range 10) 533 | -10/Materials | Discovered new exit (range 7) 542 | -10/Materials | Identified exit to Mines 567 | -10/Materials | Entered Mines 791 | -10/Mines | Learned Materials non-interactive machine intel 822 | -10/Mines | Received a Rocket Launcher from a helpful Derelict 833 | -10/Mines | Discovered exit to Materials (range 10) 918 | -10/Mines | Discovered exit to Materials (range 9) 1257 | -10/Mines | Received a Mining Laser from a helpful Derelict 1379 | -10/Mines | Discovered new exit (range 8) 1384 | -10/Mines | Identified exit to Subcaves 1486 | -10/Mines | Met a Derelict who couldn't figure out how to use a Trap Extractor 1551 | -10/Mines | Learned Materials stockpile data 1660 | -10/Mines | Entered Materials 1660 | -9/Materials | Evolved 2 slots: Propulsion x2 1661 | -9/Materials | Identified exit to Storage 1663 | -9/Materials | Loaded intel: 37 non-interactive machine locations 1754 | -9/Materials | Discovered new exit (range 10) 1757 | -9/Materials | Identified exit to Materials 1758 | -9/Materials | Entered another Materials area 1758 | -8/Materials | Evolved 2 slots: Utility x1, Weapon x1 1952 | -8/Materials | Build established: Scavenger-Sprinter 2075 | -8/Materials | Self-destructed Last Messages --------------- 02035_ O-16 Technician: "IFF HANDSHAKE FAILED. SECURING TERMINAL." 02037_ O-16 Technician destroyed. 02045_ Triggered Blade Trap. 02045_ Massive razor-sharp blades shoot up from within the floor. 02045_ Flight Unit severed. 02045_ Acquired Flight Unit. 02047_ Connecting with Repair Station... 02047_ ALERT: Suspicious activity at Repair Station M001. Dispatching Investigation squad. 02054_ Flight Unit destroyed. 02055_ The unstable cave ceiling collapses. 02056_ Y-45 Defender destroyed. 02056_ G-50 Soldier destroyed. 02058_ G-47 Trooper destroyed. 02061_ The unstable cave ceiling collapses. 02064_ G-47 Trooper destroyed. 02068_ The unstable cave ceiling collapses. 02068_ G-47 Trooper destroyed. 02069_ The unstable cave ceiling collapses. 02073_ K-01 Serf collects debris. Map ----- +----------------------------------------------------+ | ????????????????????????????????? | | ????????????????????????????????? | | ????????????????????????????????? | | ????????????????????????????????? | | ????????????????????????????????? | | ????????????????????????????????? | | ????????????????????????????????? | | ????????????????????????????????? | | ????????????????????????????????? | | ????????????????????????????????? | | ?????????######?????????????????? | | ????????##!!!!##????????????????? | | ????????#! !#????????????????? | | ????????# #????????????????? | | ????????##### #????????????????? | | ############# #?????########??## | | # + #??##?#!!!![[#### | | # """ ###### ## ###!!!![[## | | # "R #??### =% # | | # """ ####T# # !! | | # # = * | | # = + % # # #* | | # # ** # # | | # # ** # #### | | # """ ## * ## #?# "" | | # """ ##@ ! # # #+#?# #?##"Y | | # """ ## #?? ???# #??#"" | | # ## [[] #?????????# #??# | | #?###### [[] #?????????? ???### | | ???????# []] #?????????? | | ???????# #?????????? ???### | | ???????# ????????? ?????? | | ???????#= ???????? ?????? | | ??????? +#??????? ?????? | | ?????? ??????????????? | | ?????## k ?????????????? | | ?????? # ##????????????? | | ??????? ??????????????? | | ??????? ????????????????? | | ???????# ?????????????????? | | ???????? ?????????????????????? | | ????????????????????????????????? | | ????????????????????????????????? | | ????????????????????????????????? | | ????????????????????????????????? | | ????????????????????????????????? | | ????????????????????????????????? | | ????????????????????????????????? | | ????????????????????????????????? | | ????????????????????????????????? | +----------------------------------------------------+ Best States ------------- Heat Dissipation 53 Energy Generation 10 Energy Capacity 125 Matter Stores 300 Matter Capacity 300 Sight Range 16 Terrain Scan Density 10 Evasion (%) 63 Item Schematics ----------------- Flight Unit | -9/Materials | Scanalyzed Robot Schematics ------------------ None Fabricated ------------ Nothing Alien Tech Used ----------------- None Achievements -------------- None Challenges ------------ None Game ------ Seed ArmoredTerrainFlail Manual? 0 Play Time 00:25:44 Cumulative 19.9 hours Start 2025.03.20 @ 18:18:52 End 2025.03.20 @ 18:49:21 Sessions 1 Manual Loads 0 Difficulty Rogue Special Mode None Game No. 25 Rogue 24 Adventurer 1 Explorer 0 Win Type - Total 0 Types 0/0/0/0/0/0/0/0/0 Lore% 23 Gallery% 21 Achievement% 21 Wizard Run 0 Options --------- Layout 0 ASCII 0 Keyboard 0 Movement Mouse Keybinds 0 Fullscreen 1 Font 16/SmallcapsGlow Map View 75x55 Zoom Use 52% Tactical HUD 1 Map Filters NONE Filters NONE Steam 1 RUN: c074b5d2-5956-455f-9e85-030519f8c75e